fUST/lending_fUST_20250417
["ID","MTS","AMOUNT","RATE_DAILY","PERIOD"]
[358227074,1744858254240,-913.67,0.00022191,2]
[358227076,1744858254249,-500.0,0.00022191,2]
[358227078,1744858254258,-500.0,0.00022191,2]
[358227080,1744858254271,-500.0,0.00022191,2]
[358227082,1744858254281,-500.0,0.00022191,2]
[358227083,1744858254291,-683.81,0.00022191,2]
[358227084,1744858254301,-944.23,0.00022191,2]
[358227085,1744858254311,-764.03,0.00022191,2]
[358227086,1744858254322,-500.0,0.00022191,2]
[358227087,1744858254331,-500.0,0.00022191,2]
[358227088,1744858254342,-500.0,0.00022191,2]
[358227089,1744858254352,-545.03,0.00022191,2]
[358227090,1744858254362,-500.0,0.00022191,2]
[358227091,1744858254371,-784.67,0.00022191,2]
[358227092,1744858254382,-500.0,0.00022191,2]
[358227093,1744858254391,-500.0,0.00022191,2]
[358227094,1744858254401,-877.44,0.00022191,2]
[358227095,1744858254411,-500.0,0.00022191,2]
[358227096,1744858254422,-1218.05,0.00022191,2]
[358227097,1744858254434,-500.0,0.00022191,2]
[358227098,1744858254444,-500.0,0.00022191,2]
[358227100,1744858254453,-500.0,0.00022191,2]
[358227102,1744858254463,-500.0,0.00022191,2]
[358227104,1744858254474,-683.68,0.00022191,2]
[358227106,1744858254484,-559.87,0.00022191,2]
[358227108,1744858254493,-500.0,0.00022191,2]
[358227110,1744858254503,-693.44,0.00022191,2]
[358227112,1744858254514,-500.0,0.00022191,2]
[358227114,1744858254524,-975.86,0.00022191,2]
[358227116,1744858254534,-792.55,0.00022191,2]
[358227118,1744858254544,-500.0,0.00022191,2]
[358227120,1744858254554,-500.0,0.00022191,2]
[358227122,1744858254564,-155.62546318,0.00022191,2]
[358227124,1744858254573,-500.0,0.00022191,2]
[358227126,1744858254583,-598.33,0.00022191,2]
[358227128,1744858254593,-500.0,0.00022191,2]
[358227130,1744858254603,-628.02,0.00022191,2]
[358227132,1744858254612,-553.58,0.00022191,2]
[358227134,1744858254621,-500.0,0.00022191,2]
[358227136,1744858254631,-500.0,0.00022191,2]
[358227138,1744858254641,-1636.9,0.00022191,2]
[358227140,1744858254651,-500.0,0.00022191,2]
[358227142,1744858254660,-500.0,0.00022191,2]
[358227144,1744858254670,-500.0,0.00022191,2]
[358227146,1744858254679,-500.0,0.00022191,2]
[358227148,1744858254689,-500.0,0.00022191,2]
[358227150,1744858254699,-1835.31,0.00022191,2]
[358227152,1744858254709,-500.0,0.00022191,2]
[358227154,1744858254718,-500.0,0.00022191,2]
[358227156,1744858254728,-750.97,0.00022191,2]
[358227158,1744858254738,-500.0,0.00022191,2]
[358227160,1744858254748,-1314.4,0.00022191,2]
[358227162,1744858254757,-500.0,0.00022191,2]
[358227164,1744858254768,-697.42,0.00022191,2]
[358227166,1744858254777,-500.0,0.00022191,2]
[358227168,1744858254788,-500.0,0.00022191,2]
[358227170,1744858254797,-2311.48,0.00022191,2]
[358227172,1744858254806,-1860.05,0.00022191,2]
[358227174,1744858254816,-218.00642087,0.00022191,2]
[358227176,1744858254825,-17744.27,0.00022191,2]
[358227178,1744858254834,-500.0,0.00022191,2]
[358227180,1744858254844,-1108.64,0.00022191,2]
[358227182,1744858254854,-500.0,0.00022191,2]
[358227184,1744858254863,-945.88,0.00022191,2]
[358227186,1744858254872,-500.0,0.00022191,2]
[358227188,1744858254882,-520.0,0.00022191,2]
[358227190,1744858254891,-500.0,0.00022191,2]
[358227192,1744858254901,-823.62,0.00022191,2]
[358227194,1744858254910,-740.06,0.00022191,2]
[358227196,1744858254920,-400.17388457,0.00022191,2]
[358227198,1744858254930,-1568.44,0.00022191,2]
[358227200,1744858254939,-500.0,0.00022191,2]
[358227202,1744858254949,-500.0,0.00022191,2]
[358227204,1744858254959,-500.0,0.00022191,2]
[358227206,1744858254968,-500.0,0.00022191,2]
[358227208,1744858254978,-500.0,0.00022191,2]
[358227210,1744858254987,-500.0,0.00022191,2]
[358227212,1744858254997,-514.46,0.00022191,2]
[358227214,1744858255007,-500.0,0.00022191,2]
[358227216,1744858255016,-500.0,0.00022191,2]
[358227218,1744858255026,-1485.52,0.00022191,2]
[358227220,1744858255036,-2040.86,0.00022191,2]
[358227222,1744858255045,-1227.68,0.00022191,2]
[358227224,1744858255056,-500.0,0.00022191,2]
[358227226,1744858255066,-500.0,0.00022191,2]
[358227228,1744858255077,-500.0,0.00022191,2]
[358227230,1744858255087,-664.09,0.00022191,2]
[358227232,1744858255096,-1373.16,0.00022191,2]
[358227234,1744858255105,-500.0,0.00022191,2]
[358227236,1744858255115,-500.0,0.00022191,2]
[358227238,1744858255124,-1480.51,0.00022191,2]
[358227241,1744858255144,-2093.45,0.00022191,2]
[358227243,1744858255155,-1339.95,0.00022191,2]
[358227245,1744858255165,-2063.5,0.00022191,2]
[358227247,1744858255176,-500.0,0.00022191,2]
[358227249,1744858255187,-500.0,0.00022191,2]
[358227251,1744858255197,-500.0,0.00022191,2]
[358227253,1744858255207,-500.0,0.00022191,2]
[358227255,1744858255217,-500.0,0.00022191,2]
[358227257,1744858255227,-500.0,0.00022191,2]
[358227259,1744858255237,-500.0,0.00022191,2]
[358227261,1744858255247,-500.0,0.00022191,2]
[358227263,1744858255257,-29745.38,0.00022191,2]
[358227265,1744858255267,-500.0,0.00022191,2]
[358227267,1744858255277,-1504.4,0.00022191,2]
[358227281,1744858255287,-500.0,0.00022191,2]
[358227283,1744858255408,-500.0,0.00022191,2]
[358227285,1744858255418,-500.0,0.00022191,2]
[358227287,1744858255430,-500.0,0.00022191,2]
[358227289,1744858255439,-500.0,0.00022191,2]
[358227291,1744858255448,-500.0,0.00022191,2]
[358227293,1744858255458,-500.0,0.00022191,2]
[358227295,1744858255468,-500.0,0.00022191,2]
[358227297,1744858255478,-662.32,0.00022191,2]
[358227299,1744858255487,-1666.19,0.00022191,2]
[358227301,1744858255497,-500.0,0.00022191,2]
[358227303,1744858255507,-1889.71,0.00022191,2]
[358227305,1744858255516,-699.49,0.00022191,2]
[358227307,1744858255526,-1033.87,0.00022191,2]
[358227309,1744858255535,-500.0,0.00022191,2]
[358227311,1744858255545,-500.0,0.00022191,2]
[358227313,1744858255554,-500.0,0.00022191,2]
[358227314,1744858255563,-500.0,0.00022191,2]
[358227317,1744858255574,-500.0,0.00022191,2]
[358227318,1744858255583,-1731.76,0.00022191,2]
[358227320,1744858255593,-1955.17,0.00022191,2]
[358227322,1744858255603,-500.0,0.00022191,2]
[358227324,1744858255612,-500.0,0.00022191,2]
[358227326,1744858255621,-2230.56,0.00022191,2]
[358227328,1744858255631,-1001.66,0.00022191,2]
[358227330,1744858255640,-652.27,0.00022191,2]
[358227332,1744858255650,-500.0,0.00022191,2]
[358227334,1744858255659,-500.0,0.00022191,2]
[358227336,1744858255668,-1381.33,0.00022191,2]
[358227338,1744858255677,-500.0,0.00022191,2]
[358227340,1744858255687,-896.65,0.00022191,2]
[358227342,1744858255696,-500.24,0.00022191,2]
[358227344,1744858255705,-1160.65,0.00022191,2]
[358227346,1744858255714,-827.67,0.00022191,2]
[358227348,1744858255723,-500.0,0.00022191,2]
[358227351,1744858255737,-500.0,0.00022191,2]
[358227353,1744858255747,-827.95,0.00022191,2]
[358227355,1744858255756,-500.0,0.00022191,2]
[358227357,1744858255767,-500.0,0.00022191,2]
[358227359,1744858255777,-1154.23,0.00022191,2]
[358227361,1744858255786,-891.77,0.00022191,2]
[358227363,1744858255795,-2078.56,0.00022191,2]
[358227365,1744858255805,-500.0,0.00022191,2]
[358227367,1744858255815,-629.2,0.00022191,2]
[358227369,1744858255826,-500.0,0.00022191,2]
[358227371,1744858255835,-1371.06,0.00022191,2]
[358227373,1744858255845,-826.58,0.00022191,2]
[358227375,1744858255855,-746.35,0.00022191,2]
[358227377,1744858255864,-500.0,0.00022191,2]
[358227379,1744858255874,-500.0,0.00022191,2]
[358227381,1744858255882,-500.0,0.00022191,2]
[358227383,1744858255890,-1091.32,0.00022191,2]
[358227385,1744858255900,-497.67735221,0.00022191,2]
[358227387,1744858255909,-500.0,0.00022191,2]
[358227389,1744858255917,-500.0,0.00022191,2]
[358227391,1744858255926,-500.0,0.00022191,2]
[358227393,1744858255935,-1092.77,0.00022191,2]
[358227395,1744858255945,-500.0,0.00022191,2]
[358227397,1744858255954,-2205.42,0.00022191,2]
[358227399,1744858255964,-1100.14,0.00022191,2]
[358227401,1744858255974,-7757.45,0.00022191,2]
[358227403,1744858255983,-1572.89,0.00022191,2]
[358227405,1744858255993,-539.87,0.00022191,2]
[358227406,1744858256002,-730.0,0.00022191,2]
[358227408,1744858256012,-806.76,0.00022191,2]
[358227410,1744858256021,-500.0,0.00022191,2]
[358227412,1744858256031,-500.0,0.00022191,2]
[358227414,1744858256040,-500.0,0.00022191,2]
[358227416,1744858256049,-500.0,0.00022191,2]
[358227418,1744858256060,-500.0,0.00022191,2]
[358227420,1744858256070,-784.5,0.00022191,2]
[358227422,1744858256080,-1113.5,0.00022191,2]
[358227424,1744858256089,-669.7,0.00022191,2]
[358227426,1744858256099,-814.84,0.00022191,2]
[358227428,1744858256109,-1046.42,0.00022191,2]
[358227430,1744858256120,-869.06,0.00022191,2]
[358227432,1744858256129,-1488.91,0.00022191,2]
[358227434,1744858256139,-600.53,0.00022191,2]
[358227436,1744858256148,-500.0,0.00022191,2]
[358227438,1744858256158,-500.0,0.00022191,2]
[358227440,1744858256167,-715.26299485,0.00022191,2]
[358227482,1744858256610,-332.98700515,0.00022191,2]
[358227483,1744858256619,-500.0,0.00022191,2]
[358227484,1744858256629,-500.0,0.00022191,2]
[358227485,1744858256638,-500.0,0.00022191,2]
[358227486,1744858256648,-550.08,0.00022191,2]
[358227487,1744858256657,-1264.18,0.00022191,2]
[358227488,1744858256666,-703.45,0.00022191,2]
[358227489,1744858256676,-1005.23,0.00022191,2]
[358227490,1744858256685,-530.69,0.00022191,2]
[358227491,1744858256694,-500.0,0.00022191,2]
[358227492,1744858256703,-500.0,0.00022191,2]
[358227494,1744858256713,-1038.79,0.00022191,2]
[358227495,1744858256722,-500.0,0.00022191,2]
[358227497,1744858256732,-500.0,0.00022191,2]
[358227499,1744858256741,-500.0,0.00022191,2]
[358227501,1744858256751,-500.0,0.00022191,2]
[358227503,1744858256761,-1596.11,0.00022191,2]
[358227505,1744858256771,-565.84,0.00022191,2]
[358227507,1744858256781,-625.68,0.00022191,2]
[358227509,1744858256791,-500.0,0.00022191,2]
[358227511,1744858256801,-648.35,0.00022191,2]
[358227514,1744858256811,-1014.7,0.00022191,2]
[358227516,1744858256821,-500.0,0.00022191,2]
[358227518,1744858256831,-500.0,0.00022191,2]
[358227520,1744858256841,-500.0,0.00022191,2]
[358227522,1744858256850,-500.0,0.00022191,2]
[358227524,1744858256860,-500.64,0.00022191,2]
[358227526,1744858256869,-500.0,0.00022191,2]
[358227528,1744858256879,-576.44,0.00022191,2]
[358227530,1744858256888,-500.0,0.00022191,2]
[358227532,1744858256897,-500.0,0.00022191,2]
[358227534,1744858256907,-3045.06,0.00022191,2]
[358227536,1744858256917,-500.0,0.00022191,2]
[358227538,1744858256926,-500.0,0.00022191,2]
[358227540,1744858256936,-422.80988652,0.00022191,2]
[358227542,1744858256946,-500.0,0.00022191,2]
[358227544,1744858256955,-648.86,0.00022191,2]
[358227546,1744858256965,-659.68,0.00022191,2]
[358227548,1744858256975,-1718.86,0.00022191,2]
[358227550,1744858256984,-667.38,0.00022191,2]
[358227552,1744858256994,-1267.09,0.00022191,2]
[358227554,1744858257003,-500.0,0.00022191,2]
[358227556,1744858257013,-500.0,0.00022191,2]
[358227558,1744858257024,-500.0,0.00022191,2]
[358227560,1744858257033,-666.04,0.00022191,2]
[358227562,1744858257043,-500.0,0.00022191,2]
[358227564,1744858257053,-949.79747567,0.00022191,2]
[358231480,1744858500998,190.2,0.0001801,2]
[358231481,1744858501116,1400.62,0.0001801,2]
[358231482,1744858526621,-151.0,0.000222,10]
[358231483,1744858526675,-151.0,0.000227,6]
[358231484,1744858531898,4669.65507594,0.00022739,3]
[358231485,1744858534223,1400.61,0.0001801,2]
[358231487,1744859095561,10000.0,0.0001801,2]
[358231488,1744859102600,10000.0,0.0001801,2]
[358231489,1744859111020,10000.0,0.0001801,2]
[358231490,1744859144946,10000.0,0.0001801,2]
[358231491,1744859154447,10000.0,0.0001801,2]
[358231492,1744859165082,10000.0,0.0001801,2]
[358231493,1744859180947,10000.0,0.0001801,2]
[358231494,1744859192066,10000.0,0.0001801,2]
[358231496,1744859202801,10000.0,0.0001801,2]
[358231497,1744859212646,10000.0,0.0001801,2]
[358231509,1744859297072,-289.02331945,0.00019687,2]
[358231510,1744859343868,-221.36375288,0.00019686,2]
[358231557,1744859432002,-28.63624712,0.00019686,2]
[358231559,1744859432012,-83.66636455,0.00019687,2]
[358231562,1744859432021,-152.54590311,0.00019813,2]
[358231565,1744859432030,-155.41472256,0.00020589,2]
[358231568,1744859432039,-1561.13760566,0.00020589,2]
[358231570,1744859432049,-500.0,0.00020684,2]
[358231572,1744859432058,-500.0,0.00020684,2]
[358231575,1744859432068,-300.0,0.00020684,2]
[358231578,1744859432077,-300.0,0.00020684,2]
[358231581,1744859432086,-500.0,0.00020685,2]
[358231584,1744859432096,-500.0,0.00020685,2]
[358231587,1744859432105,-500.0,0.00020685,2]
[358231590,1744859432114,-624.34242416,0.00020685,2]
[358231592,1744859432123,-500.0,0.00020685,2]
[358231594,1744859432132,-500.0,0.00020685,2]
[358231595,1744859432141,-500.0,0.00020685,2]
[358231598,1744859432150,-500.0,0.00020685,2]
[358231601,1744859432160,-500.0,0.00020685,2]
[358231603,1744859432169,-155.17683549,0.00020687,2]
[358231606,1744859432178,-187.75284949,0.00020687,2]
[358231609,1744859432188,-500.0,0.00020687,2]
[358231612,1744859432197,-500.0,0.00020687,2]
[358231615,1744859432208,-500.0,0.00020687,2]
[358231618,1744859432218,-12530.71460996,0.00020688,7]
[358231623,1744859432231,-37512.01285164,0.00020688,7]
[358231626,1744859432241,-24900.0,0.00020689,2]
[358231629,1744859432251,-1956.19215582,0.0002084,2]
[358231631,1744859432263,-1135.40946328,0.0002084,2]
[358231633,1744859432272,-500.0,0.00020961,2]
[358231635,1744859432282,-152.54590311,0.00021055,5]
[358231637,1744859432292,-500.0,0.00021235,2]
[358231639,1744859432301,-573.66540365,0.000215,2]
[358231640,1744859432311,-190.20866203,0.000215,2]
[358231642,1744859432321,-500.0,0.00021509,2]
[358231644,1744859432331,-159.16,0.00021665,2]
[358231645,1744859432340,-12572.73982664,0.00021667,2]
[358231647,1744859432350,-500.02,0.00021783,2]
[358231649,1744859432363,-273235.77904063,0.00021817,2]
[358231651,1744859432374,-780.57319655,0.00021817,2]
[358231653,1744859432386,-1223.57499,0.00021817,2]
[358231655,1744859432399,-43604.9793173,0.00021817,2]
[358231749,1744859438052,-1840.43635629,0.00021817,2]
[358231752,1744859438064,-1299.63428937,0.00021817,2]
[358231754,1744859438075,-1053.20335105,0.00021817,2]
[358231756,1744859438091,-793.82325541,0.00021817,2]
[358231768,1744859438192,-1390.80000001,0.00021817,2]
[358231770,1744859438208,-985.13637237,0.00021817,2]
[358231983,1744859440279,-3821.0,0.00021817,2]
[358231990,1744859440343,-3431.59890769,0.00021817,2]
[358232245,1744859442967,-383.38214288,0.00021817,2]
[358232250,1744859443008,-23804.35455799,0.00021817,2]
[358232253,1744859443023,-12351.72422246,0.00021817,2]
[358232255,1744859443032,-151.0,0.00021904,2]
[358232256,1744859443042,-207.4,0.00021904,2]
[358232257,1744859443052,-500.0,0.00021917,2]
[358232258,1744859443062,-500.0,0.00021917,2]
[358232259,1744859443071,-500.0,0.00021917,2]
[358232260,1744859443080,-1041.45,0.00021917,2]
[358232261,1744859443090,-1319.92,0.00021917,2]
[358232263,1744859443099,-1090.9,0.00021917,2]
[358232266,1744859443109,-578.11,0.00021917,2]
[358232268,1744859443118,-702.84,0.00021917,2]
[358232270,1744859443128,-500.0,0.00021917,2]
[358232272,1744859443137,-500.0,0.00021917,2]
[358232274,1744859443146,-227.79090551,0.00021917,2]
[358232276,1744859443156,-500.0,0.00021917,2]
[358232278,1744859443165,-3452.11,0.00021917,2]
[358232280,1744859443174,-500.0,0.00021917,2]
[358232282,1744859443184,-2163.33,0.00021917,2]
[358232284,1744859443193,-672.78,0.00021917,2]
[358232286,1744859443203,-500.0,0.00021917,2]
[358232288,1744859443212,-500.0,0.00021917,2]
[358232290,1744859443221,-500.0,0.00021917,2]
[358232292,1744859443231,-500.0,0.00021917,2]
[358232294,1744859443240,-500.0,0.00021917,2]
[358232296,1744859443249,-500.0,0.00021917,2]
[358232298,1744859443258,-500.0,0.00021917,2]
[358232300,1744859443268,-500.0,0.00021917,2]
[358232302,1744859443278,-500.0,0.00021917,2]
[358232304,1744859443288,-500.0,0.00021917,2]
[358232306,1744859443297,-946.64,0.00021917,2]
[358232308,1744859443307,-500.0,0.00021917,2]
[358232310,1744859443317,-789.54,0.00021917,2]
[358232312,1744859443326,-701.74,0.00021917,2]
[358232314,1744859443335,-500.0,0.00021917,2]
[358232316,1744859443344,-3677.94,0.00021917,2]
[358232318,1744859443354,-500.0,0.00021917,2]
[358232320,1744859443363,-500.0,0.00021917,2]
[358232323,1744859443377,-500.0,0.00021917,2]
[358232325,1744859443386,-500.0,0.00021917,2]
[358232327,1744859443395,-500.0,0.00021917,2]
[358232329,1744859443405,-604.68515499,0.00021917,2]
[358232331,1744859443414,-500.0,0.00021917,2]
[358232333,1744859443424,-500.0,0.00021917,2]
[358232335,1744859443433,-500.0,0.00021917,2]
[358232337,1744859443443,-500.0,0.00021917,2]
[358232339,1744859443452,-500.0,0.00021917,2]
[358232341,1744859443461,-500.0,0.00021917,2]
[358232343,1744859443471,-500.0,0.00021917,2]
[358232345,1744859443483,-1496.62,0.00021917,2]
[358232347,1744859443492,-500.0,0.00021917,2]
[358232349,1744859443501,-700.36,0.00021917,2]
[358232351,1744859443511,-500.0,0.00021917,2]
[358232353,1744859443520,-681.03,0.00021917,2]
[358232355,1744859443529,-500.0,0.00021917,2]
[358232357,1744859443538,-1460.72,0.00021917,2]
[358232359,1744859443548,-500.0,0.00021917,2]
[358232361,1744859443558,-500.0,0.00021917,2]
[358232363,1744859443567,-500.0,0.00021917,2]
[358232366,1744859443577,-452.56782499,0.00021917,2]
[358232368,1744859443587,-500.0,0.00021917,2]
[358232370,1744859443596,-583.96,0.00021917,2]
[358232372,1744859443606,-500.0,0.00021917,2]
[358232374,1744859443615,-837.53,0.00021917,2]
[358232376,1744859443625,-1036.15,0.00021917,2]
[358232378,1744859443636,-500.0,0.00021917,2]
[358232380,1744859443645,-575.69,0.00021917,2]
[358232382,1744859443655,-500.0,0.00021917,2]
[358232384,1744859443664,-500.0,0.00021917,2]
[358232386,1744859443673,-500.0,0.00021917,2]
[358232388,1744859443682,-260.66171414,0.00021917,2]
[358232390,1744859443691,-500.0,0.00021917,2]
[358232392,1744859443701,-500.0,0.00021917,2]
[358232394,1744859443711,-585.58,0.00021917,2]
[358232396,1744859443720,-792.1,0.00021917,2]
[358232398,1744859443729,-500.0,0.00021917,2]
[358232400,1744859443739,-500.0,0.00021917,2]
[358232402,1744859443750,-500.0,0.00021917,2]
[358232404,1744859443759,-500.0,0.00021917,2]
[358232406,1744859443769,-500.0,0.00021917,2]
[358232408,1744859443778,-500.0,0.00021917,2]
[358232410,1744859443788,-581.63,0.00021917,2]
[358232412,1744859443798,-865.54,0.00021917,2]
[358232414,1744859443812,-603.06338445,0.00021917,2]
[358232416,1744859443821,-500.0,0.00021917,2]
[358232418,1744859443831,-500.0,0.00021917,2]
[358232420,1744859443840,-1125.37,0.00021917,2]
[358232423,1744859443850,-500.0,0.00021917,2]
[358232425,1744859443860,-726.51,0.00021917,2]
[358232427,1744859443869,-500.0,0.00021917,2]
[358232429,1744859443878,-500.0,0.00021917,2]
[358232431,1744859443888,-511.31031467,0.00021917,2]
[358232434,1744859443908,-129.14446957,0.00021917,2]
[358232436,1744859443917,-216.41437583,0.00021917,2]
[358232438,1744859443929,-587.90562417,0.00021917,2]
[358232440,1744859443938,-2.79691302,0.00021917,2]
[358232677,1744859446109,-497.20308698,0.00021917,2]
[358232679,1744859446119,-507.45,0.00021917,2]
[358232681,1744859446130,-500.0,0.00021917,2]
[358232683,1744859446140,-879.91,0.00021917,2]
[358232685,1744859446149,-500.0,0.00021917,2]
[358232687,1744859446159,-500.0,0.00021917,2]
[358232689,1744859446168,-500.0,0.00021917,2]
[358232691,1744859446177,-500.0,0.00021917,2]
[358232693,1744859446187,-500.0,0.00021917,2]
[358232695,1744859446196,-1265.87,0.00021917,2]
[358232697,1744859446206,-894.54,0.00021917,2]
[358232699,1744859446216,-500.0,0.00021917,2]
[358232701,1744859446226,-500.0,0.00021917,2]
[358232703,1744859446235,-610.54,0.00021917,2]
[358232706,1744859446244,-637.85,0.00021917,2]
[358232709,1744859446254,-500.0,0.00021917,2]
[358232711,1744859446263,-843.06,0.00021917,2]
[358232712,1744859446272,-500.0,0.00021917,2]
[358232714,1744859446282,-1500.49,0.00021917,2]
[358232716,1744859446291,-344.61508843,0.00021917,2]
[358233943,1744860631980,-213.88902089,0.0002,7]
[358233944,1744860631990,-172.71797526,0.00020741,2]
[358233945,1744860632094,-1193.27742964,0.00020741,2]
[358233946,1744860632105,-119.66572436,0.00020767,2]
[358233973,1744860638288,-130.33427564,0.00020767,2]
[358233975,1744860638298,-1000.0,0.00020767,2]
[358233977,1744860638307,-300.0,0.00020809,2]
[358233979,1744860638317,-500.0,0.0002081,2]
[358233981,1744860638327,-513.81582491,0.0002081,2]
[358233983,1744860638336,-390.07360961,0.0002081,2]
[358233985,1744860638346,-500.0,0.0002081,2]
[358233987,1744860638356,-248.48473213,0.0002081,2]
[358234722,1744860646194,-139.57360367,0.0002081,2]
[358234724,1744860646205,-500.0,0.0002081,2]
[358234726,1744860646215,-500.0,0.0002081,2]
[358234728,1744860646225,-500.0,0.0002081,2]
[358234730,1744860646235,-500.0,0.0002081,2]
[358234732,1744860646245,-337.91996822,0.0002081,2]
[358234734,1744860646255,-500.0,0.0002081,2]
[358234736,1744860646265,-500.0,0.0002081,2]
[358234738,1744860646275,-500.0,0.0002081,2]
[358234740,1744860646286,-500.0,0.0002081,2]
[358234742,1744860646296,-500.0,0.0002081,2]
[358234744,1744860646306,-500.0,0.0002081,2]
[358234746,1744860646316,-500.0,0.0002081,2]
[358234748,1744860646326,-500.0,0.0002081,2]
[358234750,1744860646336,-500.0,0.0002081,2]
[358234752,1744860646347,-500.0,0.0002081,2]
[358234754,1744860646357,-500.0,0.0002081,2]
[358234756,1744860646366,-500.0,0.0002081,2]
[358234759,1744860646376,-500.0,0.0002081,2]
[358234761,1744860646386,-500.0,0.0002081,2]
[358234762,1744860646396,-500.0,0.0002081,2]
[358234764,1744860646405,-500.0,0.0002081,2]
[358234766,1744860646415,-500.0,0.0002081,2]
[358234769,1744860646425,-500.0,0.0002081,2]
[358234770,1744860646434,-500.0,0.0002081,2]
[358234773,1744860646448,-500.0,0.0002081,2]
[358234775,1744860646459,-500.0,0.0002081,2]
[358234777,1744860646469,-500.0,0.0002081,2]
[358234779,1744860646478,-500.0,0.0002081,2]
[358234781,1744860646488,-500.0,0.0002081,2]
[358234783,1744860646498,-500.0,0.0002081,2]
[358234785,1744860646508,-500.0,0.0002081,2]
[358234787,1744860646518,-500.0,0.0002081,2]
[358234789,1744860646528,-500.0,0.0002081,2]
[358234791,1744860646539,-468.59461222,0.0002081,2]
[358234794,1744860646548,-500.0,0.0002081,2]
[358234796,1744860646558,-500.0,0.0002081,2]
[358234798,1744860646568,-500.0,0.0002081,2]
[358234800,1744860646577,-500.0,0.0002081,2]
[358234802,1744860646587,-500.0,0.0002081,2]
[358234804,1744860646597,-500.0,0.0002081,2]
[358234806,1744860646608,-500.0,0.0002081,2]
[358234808,1744860646618,-500.0,0.0002081,2]
[358234810,1744860646627,-500.0,0.0002081,2]
[358234812,1744860646637,-600.0,0.0002081,2]
[358234814,1744860646649,-500.0,0.0002081,2]
[358234816,1744860646658,-500.0,0.0002081,2]
[358234818,1744860646668,-500.0,0.0002081,2]
[358234820,1744860646678,-500.0,0.0002081,2]
[358234822,1744860646687,-500.0,0.0002081,2]
[358234824,1744860646697,-23818.4335771,0.00020816,2]
[358234826,1744860646707,-186.344842,0.00020841,2]
[358234828,1744860646716,-1621.6027154,0.00020841,2]
[358234830,1744860646726,-461.00100897,0.000218,2]
[358234832,1744860646735,-500.0,0.00021816,2]
[358234834,1744860646745,-500.0,0.00021816,2]
[358234836,1744860646755,-325.85387068,0.00021816,2]
[358234838,1744860646764,-19943.41886085,0.00021817,2]
[358234841,1744860646781,-677.70511666,0.00021817,2]
[358234904,1744861023744,58775.817082,6.9e-05,120]
[358234905,1744861023779,32635.182918,6.9e-05,120]
[358234915,1744861832595,-250.0,0.000199,2]
[358234916,1744861832604,-1000.0,0.00020667,2]
[358234917,1744861832615,-187.038853,0.00020711,2]
[358234918,1744861832627,-38.39463133,0.00021617,2]
[358234919,1744861832639,-168.40231572,0.00021617,2]
[358234920,1744861832648,-1535.19344928,0.00021617,2]
[358234921,1744861832657,-206.79694703,0.00021709,2]
[358234922,1744861832667,-159.34180727,0.00021709,2]
[358234923,1744861832686,-140.65819273,0.00021709,2]
[358234924,1744861832696,-300.0,0.0002171,2]